fUST/lending_fUST_20250107
["ID","MTS","AMOUNT","RATE_DAILY","PERIOD"]
[347904797,1736190649414,-500.0,0.00019726,3]
[347904800,1736190649423,-500.0,0.00019726,3]
[347904801,1736190649432,-500.0,0.00019726,3]
[347904804,1736190649443,-500.0,0.00019726,3]
[347904805,1736190649452,-500.0,0.00019726,3]
[347904807,1736190649462,-500.0,0.00019726,3]
[347904809,1736190649471,-500.0,0.00019726,3]
[347904811,1736190649480,-500.0,0.00019726,3]
[347904814,1736190649490,-1385.05,0.00019726,3]
[347904816,1736190649500,-387.23855346,0.00019726,3]
[347904817,1736190649509,-500.0,0.00019726,3]
[347904819,1736190649519,-500.0,0.00019726,3]
[347904821,1736190649528,-3765.87,0.00019726,3]
[347904823,1736190649537,-1631.43,0.00019726,3]
[347904825,1736190649547,-500.0,0.00019726,3]
[347904827,1736190649556,-500.0,0.00019726,3]
[347904829,1736190649566,-1281.2,0.00019726,3]
[347904831,1736190649575,-3780.39,0.00019726,3]
[347904833,1736190649584,-500.0,0.00019726,3]
[347904835,1736190649593,-500.0,0.00019726,3]
[347904837,1736190649603,-500.0,0.00019726,3]
[347904839,1736190649612,-500.0,0.00019726,3]
[347904841,1736190649621,-500.0,0.00019726,3]
[347904843,1736190649630,-500.0,0.00019726,2]
[347904845,1736190649639,-500.0,0.00019726,3]
[347904847,1736190649650,-500.0,0.00019726,3]
[347904849,1736190649659,-1239.69,0.00019726,3]
[347904851,1736190649669,-500.0,0.00019726,3]
[347904853,1736190649678,-500.0,0.00019726,3]
[347904855,1736190649687,-1041.21,0.00019726,3]
[347904857,1736190649696,-500.0,0.00019726,3]
[347904858,1736190649706,-500.0,0.00019726,3]
[347904860,1736190649715,-500.0,0.00019726,3]
[347904862,1736190649724,-500.0,0.00019726,3]
[347904864,1736190649734,-3822.55,0.00019726,3]
[347904866,1736190649743,-500.0,0.00019726,3]
[347904868,1736190649752,-500.0,0.00019726,3]
[347904870,1736190649761,-500.0,0.00019726,3]
[347904872,1736190649770,-500.0,0.00019726,3]
[347904874,1736190649779,-500.0,0.00019726,3]
[347904876,1736190649789,-500.0,0.00019726,3]
[347904878,1736190649799,-500.0,0.00019726,3]
[347904880,1736190649808,-514.0,0.00019726,3]
[347904882,1736190649818,-575.59,0.00019726,3]
[347904884,1736190649827,-807.66,0.00019726,3]
[347904886,1736190649837,-971.59,0.00019726,3]
[347904887,1736190649847,-504.60239948,0.00019726,3]
[347904889,1736190649856,-500.0,0.00019726,3]
[347904891,1736190649865,-500.0,0.00019726,3]
[347904893,1736190649875,-500.0,0.00019726,3]
[347904895,1736190649884,-7549.75,0.00019726,3]
[347904897,1736190649893,-860.07,0.00019726,3]
[347904899,1736190649902,-500.0,0.00019726,3]
[347904901,1736190649912,-500.0,0.00019726,3]
[347904903,1736190649921,-500.0,0.00019726,3]
[347904905,1736190649930,-2263.77,0.00019726,3]
[347904907,1736190649939,-500.0,0.00019726,3]
[347904909,1736190649948,-500.0,0.00019726,3]
[347904911,1736190649958,-500.0,0.00019726,3]
[347904913,1736190649967,-584.05,0.00019726,3]
[347904915,1736190649976,-500.0,0.00019726,3]
[347904917,1736190649985,-1248.29,0.00019726,3]
[347904919,1736190649995,-500.0,0.00019726,3]
[347904921,1736190650005,-500.0,0.00019726,3]
[347904923,1736190650014,-500.0,0.00019726,3]
[347904924,1736190650023,-500.0,0.00019726,3]
[347904926,1736190650033,-711.42,0.00019726,3]
[347904928,1736190650043,-1024.49,0.00019726,3]
[347904930,1736190650052,-500.0,0.00019726,3]
[347904932,1736190650061,-573.17,0.00019726,3]
[347904934,1736190650070,-500.0,0.00019726,3]
[347904936,1736190650079,-500.0,0.00019726,3]
[347904938,1736190650088,-500.0,0.00019726,3]
[347904940,1736190650097,-500.0,0.00019726,3]
[347904942,1736190650107,-500.0,0.00019726,3]
[347904944,1736190650118,-620.52,0.00019726,3]
[347904945,1736190650127,-500.0,0.00019726,3]
[347904947,1736190650137,-500.0,0.00019726,3]
[347904949,1736190650146,-2769.76,0.00019726,3]
[347904951,1736190650155,-500.0,0.00019726,3]
[347904953,1736190650164,-500.0,0.00019726,3]
[347904955,1736190650175,-500.0,0.00019726,3]
[347904957,1736190650185,-500.0,0.00019726,3]
[347904959,1736190650194,-500.0,0.00019726,3]
[347904961,1736190650203,-500.0,0.00019726,3]
[347904963,1736190650213,-2319.23,0.00019726,3]
[347904965,1736190650222,-1000.0,0.00019726,7]
[347904967,1736190650232,-500.0,0.00019726,3]
[347904969,1736190650241,-500.0,0.00019726,3]
[347904971,1736190650250,-500.0,0.00019726,3]
[347904973,1736190650259,-500.0,0.00019726,3]
[347904974,1736190650269,-1428.43,0.00019726,3]
[347904976,1736190650278,-980.06,0.00019726,3]
[347904978,1736190650288,-712.83,0.00019726,3]
[347904980,1736190650297,-500.0,0.00019726,3]
[347904982,1736190650306,-2758.08,0.00019726,3]
[347904984,1736190650315,-500.0,0.00019726,3]
[347904986,1736190650324,-3454.63,0.00019726,3]
[347904988,1736190650334,-7614.78,0.00019726,3]
[347904990,1736190650343,-500.0,0.00019726,3]
[347904992,1736190650352,-1331.61,0.00019726,3]
[347904994,1736190650361,-505.74710316,0.00019726,3]
[347904996,1736190650370,-500.0,0.00019726,3]
[347904997,1736190650379,-624.29,0.00019726,3]
[347904999,1736190650388,-500.0,0.00019726,3]
[347905002,1736190650400,-501.66950445,0.00019726,3]
[347905004,1736190650410,-562.77,0.00019726,3]
[347905005,1736190650419,-168.18687102,0.00019726,3]
[347905007,1736190650429,-500.0,0.00019726,3]
[347905009,1736190650438,-500.0,0.00019726,3]
[347905011,1736190650447,-500.0,0.00019726,3]
[347905013,1736190650457,-500.0,0.00019726,2]
[347905015,1736190650466,-500.0,0.00019726,3]
[347905017,1736190650476,-500.0,0.00019726,3]
[347905019,1736190650487,-500.0,0.00019726,3]
[347905021,1736190650497,-500.0,0.00019726,3]
[347905023,1736190650506,-518.01975838,0.00019726,3]
[347905025,1736190650515,-500.0,0.00019726,3]
[347905027,1736190650524,-502.28494733,0.00019726,3]
[347905029,1736190650534,-32285.58,0.00019726,3]
[347905030,1736190650543,-500.0,0.00019726,3]
[347905032,1736190650552,-547.82,0.00019726,3]
[347905034,1736190650561,-500.0,0.00019726,3]
[347905036,1736190650571,-1563.19,0.00019726,3]
[347905038,1736190650580,-500.0,0.00019726,5]
[347905040,1736190650589,-628.97,0.00019726,3]
[347905042,1736190650599,-159.28606266,0.00019735,2]
[347905044,1736190650609,-500.0,0.00019773,2]
[347905046,1736190650619,-500.0,0.00019773,2]
[347905048,1736190650628,-500.71358844,0.00019773,2]
[347905050,1736190650638,-501.55883046,0.00019773,2]
[347905052,1736190650647,-501.60321913,0.00019773,2]
[347905054,1736190650660,-500.0,0.00019773,2]
[347905056,1736190650670,-500.0,0.00019773,2]
[347905058,1736190650679,-602.55436816,0.00019773,2]
[347905060,1736190650688,-445.149,0.0001978,2]
[347905062,1736190650697,-513.0,0.0001996,2]
[347905064,1736190650708,-2781.92,0.00019999,3]
[347905065,1736190650717,-2781.92,0.00019999,3]
[347905067,1736190650726,-2781.92,0.00019999,3]
[347905069,1736190650736,-1607.77,0.0002,2]
[347905071,1736190650745,-151.0,0.0002,2]
[347905073,1736190650754,-151.0,0.0002,2]
[347905075,1736190650763,-151.0,0.0002,2]
[347905077,1736190650772,-151.0,0.0002,2]
[347905079,1736190650782,-166.537,0.0002,2]
[347905081,1736190650792,-500.0,0.0002,3]
[347905083,1736190650801,-500.0,0.0002,3]
[347905084,1736190650810,-500.0,0.0002,3]
[347905086,1736190650819,-500.0,0.0002,3]
[347905088,1736190650828,-500.0,0.0002,3]
[347905090,1736190650837,-500.0,0.0002,3]
[347905091,1736190650846,-500.0,0.0002,3]
[347905093,1736190650856,-548.29,0.0002,3]
[347905095,1736190650865,-500.0,0.0002,3]
[347905097,1736190650875,-500.0,0.0002,3]
[347905099,1736190650884,-500.0,0.0002,3]
[347905100,1736190650894,-500.0,0.0002,3]
[347905102,1736190650903,-500.0,0.0002,3]
[347905104,1736190650912,-290.45810434,0.0002,3]
[347905106,1736190650922,-516.24,0.0002,3]
[347905108,1736190650932,-522.91,0.0002,3]
[347905109,1736190650941,-500.0,0.0002,3]
[347905111,1736190650951,-500.0,0.0002,3]
[347905113,1736190650960,-500.0,0.0002,3]
[347905115,1736190650969,-10030.0,0.0002,2]
[347905117,1736190650978,-819.58,0.0002,3]
[347905128,1736190651095,-500.0,0.0002,3]
[347905130,1736190651115,-500.0,0.0002,3]
[347905132,1736190651124,-500.0,0.0002,3]
[347905133,1736190651133,-500.0,0.0002,3]
[347905135,1736190651142,-500.0,0.0002,3]
[347905137,1736190651152,-500.0,0.0002,3]
[347905139,1736190651161,-500.0,0.0002,3]
[347905141,1736190651170,-500.0,0.0002,3]
[347905142,1736190651178,-630.62,0.0002,3]
[347905144,1736190651187,-500.0,0.0002,3]
[347905146,1736190651197,-500.0,0.0002,3]
[347905148,1736190651206,-500.0,0.0002,3]
[347905150,1736190651215,-544.17,0.0002,3]
[347905151,1736190651224,-500.0,0.0002,3]
[347905153,1736190651234,-500.0,0.0002,3]
[347905155,1736190651244,-500.0,0.0002,3]
[347905157,1736190651253,-500.0,0.0002,3]
[347905159,1736190651262,-500.0,0.0002,3]
[347905161,1736190651271,-437.05589271,0.0002,3]
[347905162,1736190651281,-500.0,0.0002,3]
[347905164,1736190651290,-500.0,0.0002,3]
[347905166,1736190651299,-500.0,0.0002,3]
[347905168,1736190651308,-500.0,0.0002,3]
[347905170,1736190651317,-500.0,0.0002,3]
[347905172,1736190651327,-574.51,0.0002,3]
[347905174,1736190651336,-500.0,0.0002,3]
[347905175,1736190651345,-500.0,0.0002,3]
[347905177,1736190651354,-500.0,0.0002,3]
[347905179,1736190651363,-500.0,0.0002,3]
[347905181,1736190651372,-500.0,0.0002,3]
[347905183,1736190651381,-624.85,0.0002,3]
[347905185,1736190651391,-500.0,0.0002,3]
[347905186,1736190651400,-500.0,0.0002,3]
[347905188,1736190651409,-500.0,0.0002,3]
[347905190,1736190651419,-500.0,0.0002,3]
[347905192,1736190651428,-556.96,0.0002,3]
[347905194,1736190651437,-919.22,0.0002,3]
[347905196,1736190651446,-500.0,0.0002,2]
[347905198,1736190651458,-515.81293515,0.0002,3]
[347905200,1736190651467,-500.0,0.0002,3]
[347905201,1736190651476,-500.0,0.0002,3]
[347905203,1736190651485,-500.0,0.0002,3]
[347905205,1736190651494,-500.0,0.0002,3]
[347905207,1736190651504,-509.38,0.0002,3]
[347905209,1736190651513,-871.46,0.0002,3]
[347905210,1736190651522,-785.22243783,0.0002,3]
[347905230,1736190651727,-377.37756217,0.0002,3]
[347905232,1736190651738,-656.72,0.0002,3]
[347905234,1736190651747,-516.61,0.0002,3]
[347905235,1736190651756,-500.0,0.0002,3]
[347905237,1736190651765,-500.0,0.0002,3]
[347905239,1736190651775,-589.98245705,0.0002,3]
[347905241,1736190651784,-500.0,0.0002,3]
[347905243,1736190651793,-500.0,0.0002,3]
[347905245,1736190651802,-500.0,0.0002,3]
[347905247,1736190651812,-693.41,0.0002,3]
[347905248,1736190651822,-650.28,0.0002,3]
[347905250,1736190651832,-500.0,0.0002,3]
[347905252,1736190651841,-500.0,0.0002,3]
[347905254,1736190651850,-500.0,0.0002,3]
[347905256,1736190651859,-562.41,0.0002,3]
[347905258,1736190651868,-500.0,0.0002,3]
[347905259,1736190651878,-595.83,0.0002,3]
[347905261,1736190651889,-500.0,0.0002,3]
[347905263,1736190651899,-500.0,0.0002,3]
[347905265,1736190651909,-500.0,0.0002,3]
[347905267,1736190651918,-500.0,0.0002,3]
[347905269,1736190651927,-546.74,0.0002,3]
[347905271,1736190651937,-500.0,0.0002,3]
[347905273,1736190651947,-14.37403795,0.0002,3]
[347905275,1736190651962,-651.71596205,0.0002,3]
[347905277,1736190651972,-500.0,0.0002,3]
[347905279,1736190651983,-503.50687907,0.0002,3]
[347905280,1736190651993,-500.0,0.0002,3]
[347905282,1736190652002,-426.46032878,0.0002,3]
[347905284,1736190652012,-500.0,0.0002,3]
[347905286,1736190652021,-21.4768301,0.0002,3]
[347905288,1736190652033,-478.5231699,0.0002,3]
[347905290,1736190652043,-500.0,0.0002,3]
[347905293,1736190652059,-500.0,0.0002,3]
[347905295,1736190652075,-500.0,0.0002,3]
[347905297,1736190652089,-500.0,0.0002,3]
[347905300,1736190652100,-500.0,0.0002,3]
[347905302,1736190652114,-896.09,0.0002,3]
[347905304,1736190652127,-509.97,0.0002,3]
[347905306,1736190652140,-500.0,0.0002,3]
[347905309,1736190652154,-500.0,0.0002,3]
[347905311,1736190652168,-515.6777786,0.0002,3]
[347905313,1736190652182,-916.96,0.0002,3]
[347905315,1736190652194,-94.59819842,0.0002,3]
[347905318,1736190652216,-405.40180158,0.0002,3]
[347905320,1736190652229,-504.20451042,0.0002,3]
[347905322,1736190652243,-251.82805172,0.0002,3]
[347905325,1736190652256,-501.89,0.0002,3]
[347905327,1736190652267,-500.0,0.0002,3]
[347905329,1736190652280,-500.0,0.0002,3]
[347905331,1736190652292,-500.0,0.0002,3]
[347905333,1736190652305,-500.0,0.0002,3]
[347905335,1736190652319,-617.29,0.0002,3]
[347905337,1736190652332,-500.0,0.0002,3]
[347905340,1736190652345,-500.0,0.0002,3]
[347905342,1736190652360,-500.0,0.0002,3]
[347905344,1736190652373,-500.0,0.0002,3]
[347905346,1736190652383,-500.0,0.0002,3]
[347905348,1736190652394,-500.0,0.0002,3]
[347905350,1736190652406,-500.0,0.0002,3]
[347905353,1736190652420,-500.0,0.0002,3]
[347905355,1736190652434,-500.0,0.0002,3]
[347905357,1736190652446,-500.0,0.0002,3]
[347905359,1736190652465,-500.0,0.0002,3]
[347905361,1736190652476,-500.0,0.0002,3]
[347905363,1736190652489,-500.0,0.0002,3]
[347905365,1736190652500,-500.0,0.0002,3]
[347905367,1736190652510,-500.0,0.0002,3]
[347905369,1736190652523,-500.0,0.0002,3]
[347905371,1736190652535,-1385.05,0.0002,3]
[347905373,1736190652547,-500.0,0.0002,3]
[347905376,1736190652559,-500.0,0.0002,3]
[347905378,1736190652570,-3765.87,0.0002,3]
[347905380,1736190652582,-1631.43,0.0002,3]
[347905383,1736190652593,-500.0,0.0002,3]
[347905385,1736190652604,-500.0,0.0002,3]
[347905387,1736190652616,-1281.2,0.0002,3]
[347905389,1736190652627,-3780.39,0.0002,3]
[347905391,1736190652639,-500.0,0.0002,3]
[347905394,1736190652651,-500.0,0.0002,3]
[347905396,1736190652663,-382.74070476,0.0002,3]
[347905398,1736190652673,-500.0,0.0002,3]
[347905400,1736190652685,-151.45403192,0.0002,2]
[347905402,1736190652696,-500.0,0.0002,3]
[347905405,1736190652709,-500.0,0.0002,2]
[347905407,1736190652722,-500.0,0.0002,3]
[347905409,1736190652733,-500.0,0.0002,3]
[347905411,1736190652744,-1239.69,0.0002,3]
[347905414,1736190652756,-567.27577382,0.0002,3]
[347905416,1736190652767,-500.0,0.0002,3]
[347905418,1736190652778,-1041.21,0.0002,3]
[347905420,1736190652790,-500.0,0.0002,3]
[347905423,1736190652801,-500.0,0.0002,3]
[347905424,1736190652813,-500.0,0.0002,3]
[347905425,1736190652823,-500.0,0.0002,3]
[347905426,1736190652835,-3822.55,0.0002,3]
[347905427,1736190652846,-500.0,0.0002,3]
[347905428,1736190652857,-500.0,0.0002,3]
[347905429,1736190652869,-500.0,0.0002,3]
[347905430,1736190652880,-500.0,0.0002,3]
[347905431,1736190652891,-514.0,0.0002,3]
[347905432,1736190652903,-575.59,0.0002,3]
[347905433,1736190652914,-807.66,0.0002,3]
[347905434,1736190652925,-971.59,0.0002,3]
[347905435,1736190652937,-500.0,0.0002,3]
[347905436,1736190652948,-500.0,0.0002,3]
[347905437,1736190652962,-500.0,0.0002,3]
[347905438,1736190652971,-7549.75,0.0002,3]
[347905439,1736190652980,-860.07,0.0002,3]
[347905440,1736190652990,-500.0,0.0002,3]
[347905441,1736190652999,-500.0,0.0002,3]
[347905442,1736190653008,-2263.77,0.0002,3]
[347905443,1736190653018,-500.0,0.0002,3]
[347905444,1736190653028,-500.0,0.0002,3]
[347905445,1736190653037,-584.05,0.0002,3]
[347905446,1736190653047,-500.0,0.0002,3]
[347905447,1736190653057,-500.0,0.0002,3]
[347905448,1736190653066,-1248.29,0.0002,3]
[347905449,1736190653075,-296.52681724,0.0002,3]
[347905450,1736190653084,-500.0,0.0002,3]
[347905452,1736190653094,-649.32,0.0002,3]
[347905453,1736190653103,-549.8528627,0.0002,3]
[347905455,1736190653112,-711.42,0.0002,3]
[347905456,1736190653122,-166.579,0.0002,2]
[347905458,1736190653131,-8344.0,0.0002,3]
[347905460,1736190653141,-8340.0,0.0002,3]
[347905462,1736190653150,-1024.49,0.0002,3]
[347905464,1736190653160,-8340.0,0.0002,3]
[347905466,1736190653169,-8340.0,0.0002,3]
[347905468,1736190653179,-8340.0,0.0002,3]
[347905470,1736190653188,-8340.0,0.0002,3]
[347905473,1736190653198,-573.17,0.0002,3]
[347905475,1736190653209,-500.0,0.0002,3]
[347905477,1736190653220,-500.0,0.0002,3]
[347905479,1736190653229,-500.0,0.0002,3]
[347905481,1736190653238,-620.52,0.0002,3]
[347905483,1736190653247,-500.0,0.0002,3]
[347905485,1736190653257,-500.0,0.0002,3]
[347905487,1736190653266,-2769.76,0.0002,3]
[347905489,1736190653276,-500.0,0.0002,3]
[347905491,1736190653285,-500.0,0.0002,3]
[347905493,1736190653294,-500.0,0.0002,3]
[347905495,1736190653303,-202.70684271,0.0002,3]
[347905497,1736190653313,-500.0,0.0002,3]
[347905499,1736190653322,-2319.23,0.0002,3]
[347905501,1736190653332,-1000.0,0.0002,7]
[347905528,1736190653571,-500.0,0.0002,3]
[347905530,1736190653586,-500.0,0.0002,3]
[347905532,1736190653598,-500.0,0.0002,3]
[347905534,1736190653607,-349.32524595,0.0002,3]
[347905537,1736190653616,-1428.43,0.0002,3]
[347905538,1736190653626,-980.06,0.0002,3]
[347905540,1736190653635,-712.83,0.0002,3]
[347905542,1736190653645,-500.0,0.0002,3]
[347905545,1736190653659,-2758.08,0.0002,3]
[347905547,1736190653668,-500.0,0.0002,3]
[347905548,1736190653677,-3454.63,0.0002,3]
[347905550,1736190653687,-7614.78,0.0002,3]
[347905552,1736190653697,-500.0,0.0002,3]
[347905555,1736190653709,-1331.61,0.0002,3]
[347905556,1736190653719,-500.0,0.0002,3]
[347905558,1736190653731,-624.29,0.0002,3]
[347905560,1736190653740,-500.0,0.0002,3]
[347905562,1736190653749,-562.77,0.0002,3]
[347905564,1736190653759,-500.0,0.0002,3]
[347905566,1736190653768,-500.0,0.0002,3]
[347905568,1736190653777,-500.0,0.0002,3]
[347905570,1736190653787,-500.0,0.0002,2]
[347905572,1736190653797,-500.0,0.0002,3]
[347905575,1736190653806,-500.0,0.0002,3]
[347905576,1736190653816,-500.0,0.0002,3]
[347905579,1736190653825,-500.0,0.0002,3]
[347905580,1736190653835,-19094.67380073,0.0002,3]
[347905583,1736190653848,-967.82814105,0.0002,3]
[347905585,1736190653860,-500.0,0.0002,3]
[347905587,1736190653871,-8836.3605258,0.0002,3]
[347905608,1736190654262,-2886.71753242,0.0002,3]
[347905609,1736190654271,-500.0,0.0002,3]
[347905610,1736190654281,-7.97900676,0.0002,3]
[347905611,1736190654456,-492.02099324,0.0002,3]
[347905612,1736190654465,-547.82,0.0002,3]
[347905613,1736190654475,-1563.19,0.0002,3]
[347905614,1736190654485,-777.0,0.0002,2]
[347905615,1736190654494,-628.97,0.0002,3]
[347905616,1736190654503,-173.1993035,0.00020021,2]
[347905617,1736190654512,-1012.28727141,0.00020021,2]
[347905618,1736190654521,-500.0,0.00020021,2]
[347905619,1736190654531,-2781.92,0.00020272,3]
[347905620,1736190654540,-2781.92,0.00020272,3]
[347905621,1736190654549,-151.0,0.00020273,2]
[347905622,1736190654559,-200.970322,0.00020273,2]
[347905623,1736190654569,-500.0,0.00020273,3]
[347905624,1736190654578,-500.0,0.00020273,3]
[347905625,1736190654588,-500.0,0.00020273,3]
[347905626,1736190654597,-426.1562905,0.00020273,3]
[347905627,1736190654606,-500.0,0.00020273,3]
[347905628,1736190654615,-500.0,0.00020273,3]
[347905629,1736190654625,-500.0,0.00020273,3]
[347905630,1736190654634,-548.29,0.00020273,3]
[347905631,1736190654643,-198.51168039,0.00020273,3]
[347905632,1736190654655,-500.0,0.00020273,3]
[347905633,1736190654664,-500.0,0.00020273,3]
[347905634,1736190654674,-500.0,0.00020273,3]
[347905635,1736190654683,-500.0,0.00020273,3]
[347905636,1736190654693,-516.24,0.00020273,3]
[347905637,1736190654703,-522.91,0.00020273,3]
[347905638,1736190654712,-500.0,0.00020273,3]
[347905639,1736190654721,-500.0,0.00020273,3]
[347905640,1736190654731,-500.0,0.00020273,3]
[347905641,1736190654740,-819.58,0.00020273,3]
[347905642,1736190654749,-500.0,0.00020273,3]
[347905643,1736190654759,-500.0,0.00020273,3]
[347905644,1736190654768,-500.0,0.00020273,3]
[347905645,1736190654777,-387.04197259,0.00020273,3]
[347905646,1736190654787,-502.60873035,0.00020273,3]
[347905647,1736190654796,-500.0,0.00020273,3]
[347905648,1736190654805,-500.0,0.00020273,3]
[347905649,1736190654815,-500.0,0.00020273,3]
[347905650,1736190654824,-630.62,0.00020273,3]
[347905651,1736190654833,-500.0,0.00020273,3]
[347905652,1736190654842,-446.92341568,0.00020273,3]
[347905653,1736190654851,-500.0,0.00020273,3]
[347905654,1736190654860,-544.17,0.00020273,3]
[347905655,1736190654869,-596.03546013,0.00020273,3]
[347905656,1736190654879,-500.0,0.00020273,3]
[347905657,1736190654889,-557.12807984,0.00020273,3]
[347905658,1736190654898,-500.0,0.00020273,3]
[347905659,1736190654907,-500.0,0.00020273,3]
[347905660,1736190654916,-500.0,0.00020273,3]
[347905661,1736190654925,-500.0,0.00020273,3]
[347905662,1736190654935,-500.0,0.00020273,3]
[347905663,1736190654944,-500.0,0.00020273,3]
[347905664,1736190654955,-574.51,0.00020273,3]
[347905665,1736190654964,-500.0,0.00020273,3]
[347905666,1736190654973,-500.0,0.00020273,3]
[347905667,1736190654983,-303.41776431,0.00020273,3]
[347905668,1736190654994,-500.0,0.00020273,3]
[347905669,1736190655004,-500.0,0.00020273,3]
[347905670,1736190655013,-624.85,0.00020273,3]
[347905671,1736190655023,-500.0,0.00020273,3]
[347905672,1736190655032,-500.0,0.00020273,3]
[347905673,1736190655042,-500.0,0.00020273,3]
[347905674,1736190655051,-357.68,0.00020273,3]
[347905675,1736190655060,-556.96,0.00020273,3]
[347905676,1736190655070,-919.22,0.00020273,3]
[347905677,1736190655079,-500.0,0.00020273,3]
[347905678,1736190655089,-500.0,0.00020273,3]
[347905679,1736190655098,-508.44520881,0.00020273,3]
[347905680,1736190655108,-500.0,0.00020273,3]
[347905681,1736190655117,-509.38,0.00020273,3]
[347905682,1736190655126,-871.46,0.00020273,3]
[347905683,1736190655135,-1162.6,0.00020273,3]
[347905684,1736190655145,-656.72,0.00020273,3]
[347905685,1736190655154,-516.61,0.00020273,3]
[347905686,1736190655163,-500.0,0.00020273,3]
[347905687,1736190655172,-500.0,0.00020273,3]
[347905688,1736190655182,-500.0,0.00020273,3]
[347905689,1736190655191,-500.0,0.00020273,3]
[347905690,1736190655200,-500.0,0.00020273,3]
[347905691,1736190655211,-693.41,0.00020273,3]
[347905692,1736190655220,-650.28,0.00020273,3]
[347905693,1736190655230,-347.704109,0.00020273,3]
[347905694,1736190655239,-191.47865362,0.00020273,3]
[347905695,1736190655252,-308.52134638,0.00020273,3]
[347905696,1736190655261,-500.0,0.00020273,3]
[347905697,1736190655271,-562.41,0.00020273,3]
[347905698,1736190655280,-500.0,0.00020273,3]
[347905699,1736190655289,-595.83,0.00020273,3]
[347905700,1736190655298,-500.0,0.00020273,3]
[347905701,1736190655307,-500.0,0.00020273,3]
[347905702,1736190655317,-500.0,0.00020273,3]
[347905703,1736190655326,-500.0,0.00020273,3]
[347905704,1736190655335,-546.74,0.00020273,3]
[347905705,1736190655345,-500.0,0.00020273,3]
[347905706,1736190655356,-666.09,0.00020273,3]
[347905707,1736190655366,-500.0,0.00020273,3]
[347905708,1736190655375,-500.0,0.00020273,3]
[347905709,1736190655384,-500.0,0.00020273,3]
[347905710,1736190655394,-500.0,0.00020273,3]
[347905711,1736190655403,-500.0,0.00020273,3]
[347905712,1736190655412,-500.0,0.00020273,3]
[347905713,1736190655422,-500.0,0.00020273,3]
[347905714,1736190655432,-436.27511656,0.00020273,3]
[347905715,1736190655443,-500.0,0.00020273,3]
[347905716,1736190655454,-896.09,0.00020273,3]
[347905717,1736190655463,-509.97,0.00020273,3]
[347905718,1736190655472,-500.0,0.00020273,3]